bitfinex-derivatives/quotes_BTCF0:USTF0_20230901
["timestamp","ask_amount","ask_price","bid_price","bid_amount"]
[1693570431713,0.45052649,26097.0,26096.0,0.42318852]
[1693570432605,0.50435042,26097.0,26096.0,0.42318852]
[1693570434505,0.45052649,26097.0,26096.0,0.42318852]
[1693570434706,0.50435042,26097.0,26096.0,0.42318852]
[1693570437006,0.45052649,26097.0,26096.0,0.42318852]
[1693570439412,0.50435042,26097.0,26096.0,0.42318852]
[1693570440311,0.45052649,26097.0,26096.0,0.42318852]
[1693570441715,0.50435042,26097.0,26096.0,0.42318852]
[1693570442119,0.45052649,26097.0,26096.0,0.42318852]
[1693570442323,0.50435042,26097.0,26096.0,0.42318852]
[1693570442508,0.45052649,26097.0,26096.0,0.42318852]
[1693570442909,0.50435042,26097.0,26096.0,0.42318852]
[1693570443520,0.45052649,26097.0,26096.0,0.42318852]
[1693570444218,0.50435042,26097.0,26096.0,0.42318852]
[1693570444810,0.45052649,26097.0,26096.0,0.42318852]
[1693570445419,0.50435042,26097.0,26096.0,0.42318852]
[1693570446916,0.45052649,26097.0,26096.0,0.42318852]
[1693570447808,0.45250314,26097.0,26096.0,0.4797369]
[1693570449325,0.22255503,26097.0,26096.0,0.4797369]
[1693570450025,0.27910341,26097.0,26096.0,0.42318852]
[1693570450421,0.1602,26097.0,26096.0,0.47787759]
[1693570450828,0.1602,26097.0,26096.0,0.53442597]
[1693570451628,0.03120679,26098.0,26096.0,0.55442597]
[1693570451836,0.19169773,26097.0,26096.0,0.02788852]
[1693570452132,0.19169773,26097.0,26096.0,0.44318852]
[1693570452333,0.22994811,26101.0,26096.0,0.44318852]
[1693570452514,0.22994811,26102.0,26100.0,0.4153]
[1693570452720,0.22994811,26102.0,26101.0,0.52653745]
[1693570453018,0.22994811,26102.0,26101.0,0.54842597]
[1693570453218,0.22994811,26103.0,26101.0,0.70232597]
[1693570453415,0.22994811,26103.0,26102.0,0.52653745]
[1693570454014,0.22994811,26103.0,26102.0,0.52842597]
[1693570454418,0.22994811,26103.0,26102.0,0.4737369]
[1693570454622,0.22994811,26103.0,26102.0,0.4767369]
[1693570454936,0.22994811,26103.0,26102.0,0.4797369]
[1693570455232,0.26078373,26103.0,26102.0,0.42318852]
[1693570456024,0.26078373,26103.0,26102.0,0.4797369]
[1693570456932,0.75373766,26103.0,26102.0,0.00788852]
[1693570457132,0.52378955,26103.0,26102.0,0.00788852]
[1693570457431,0.80620823,26103.0,26102.0,0.00788852]
[1693570457635,0.63199608,26103.0,26102.0,0.00788852]
[1693570458024,0.63199608,26103.0,26102.0,0.00488852]
[1693570458226,0.63199608,26103.0,26102.0,0.00788852]
[1693570459636,1.01786468,26103.0,26102.0,0.00788852]
[1693570460835,1.01786474,26103.0,26102.0,0.00788852]
[1693570462340,1.01786462,26103.0,26102.0,0.00788852]
[1693570462542,0.93859357,26103.0,26102.0,0.00788852]
[1693570463043,1.01786467,26103.0,26102.0,0.00788852]
[1693570466243,0.93859357,26103.0,26102.0,0.00788852]
[1693570469850,0.93859357,26103.0,26102.0,0.00488852]
[1693570470041,0.93859357,26103.0,26102.0,0.00788852]
[1693570470237,1.07673913,26103.0,26099.0,0.4153]
[1693570470438,0.26795328,26101.0,26095.0,0.03121948]
[1693570470751,0.4153,26097.0,26096.0,0.4153]
[1693570470940,0.4153,26097.0,26096.0,0.6019]
[1693570470941,0.52567231,26097.0,26096.0,0.6019]
[1693570472744,0.52567231,26097.0,26096.0,0.58291]
[1693570473136,0.52567231,26097.0,26096.0,0.58591]
[1693570473137,0.52867231,26097.0,26096.0,0.58591]
[1693570473342,0.52867231,26097.0,26096.0,0.56591]
[1693570473743,0.53167231,26097.0,26096.0,0.56591]
[1693570473948,0.53167231,26097.0,26096.0,0.56891]
[1693570474146,0.52867231,26097.0,26096.0,0.56591]
[1693570474351,0.53167231,26097.0,26096.0,0.54993]
[1693570475849,0.53550231,26097.0,26096.0,0.006]
[1693570476948,0.55550231,26097.0,26096.0,0.006]
[1693570481454,0.53550231,26097.0,26096.0,0.006]
[1693570481654,0.55550231,26097.0,26096.0,0.006]
[1693570482659,0.01308,26096.0,26093.0,0.5724]
[1693570482855,0.71710152,26095.0,26093.0,0.55932]
[1693570483055,0.60672921,26095.0,26093.0,0.55932]
[1693570483357,0.11037231,26094.0,26093.0,0.55932]
[1693570483857,0.11037231,26094.0,26093.0,0.54023]
[1693570484056,0.11037231,26094.0,26093.0,0.4183]
[1693570484355,0.11037231,26094.0,26093.0,0.4213]
[1693570485258,0.11637231,26094.0,26093.0,0.4213]
[1693570485554,0.12237231,26094.0,26093.0,0.4213]
[1693570488854,0.06854838,26094.0,26093.0,0.4213]
[1693570489053,0.12237231,26094.0,26093.0,0.4213]
[1693570489955,0.06854838,26094.0,26093.0,0.4213]
[1693570490753,0.12237231,26094.0,26093.0,0.4213]
[1693570490953,0.06854838,26094.0,26093.0,0.4213]
[1693570492050,0.06854838,26094.0,26093.0,0.53253745]
[1693570492253,0.012,26094.0,26093.0,0.53253745]
[1693570493659,0.012,26094.0,26093.0,0.4213]
[1693570494460,0.12237231,26094.0,26093.0,0.4213]
[1693570494966,0.06854838,26094.0,26093.0,0.4213]
[1693570495457,0.12237231,26094.0,26093.0,0.4213]
[1693570495666,0.06854838,26094.0,26093.0,0.4213]
[1693570496054,0.12237231,26094.0,26093.0,0.4213]
[1693570496862,0.15273922,26094.0,26093.0,0.4213]
[1693570499166,0.09891529,26094.0,26093.0,0.4213]
[1693570500968,0.15273922,26094.0,26093.0,0.4213]
[1693570501163,0.09891529,26094.0,26093.0,0.4213]
[1693570501958,0.15273922,26094.0,26093.0,0.4213]
[1693570502168,0.09891529,26094.0,26093.0,0.4213]
[1693570504473,0.15273922,26094.0,26093.0,0.4213]
[1693570504672,0.09891529,26094.0,26093.0,0.4213]
[1693570505069,0.04236691,26094.0,26093.0,0.47784838]
[1693570505271,0.012,26094.0,26093.0,0.47784838]
[1693570505568,0.012,26094.0,26093.0,0.55253745]
[1693570505774,0.012,26094.0,26093.0,0.62846737]
[1693570506367,0.012,26094.0,26093.0,0.53253745]
[1693570506676,0.19142921,26096.0,26095.0,0.4153]
[1693570506867,0.19142921,26096.0,26095.0,0.99519597]
[1693570507069,0.2296744,26101.0,26095.0,0.88395852]
[1693570507274,0.19154524,26098.0,26095.0,0.54458844]
[1693570507471,0.2296744,26101.0,26097.0,0.4153]
[1693570507669,0.2296744,26101.0,26100.0,0.4153]
[1693570507869,0.2296744,26101.0,26100.0,0.52653745]
[1693570508675,0.2296744,26101.0,26100.0,0.52953745]
[1693570509276,0.2296744,26101.0,26100.0,0.53253745]
[1693570510790,0.2296744,26101.0,26100.0,0.4213]
[1693570510993,0.34004671,26101.0,26100.0,0.4213]
[1693570512390,0.4338109,26101.0,26100.0,0.4213]
[1693570512591,0.4538109,26101.0,26100.0,0.4213]
[1693570513888,0.4199085,26101.0,26100.0,0.4213]
[1693570514394,0.3999085,26101.0,26100.0,0.4213]
[1693570514694,0.4199085,26101.0,26100.0,0.4213]
[1693570514893,0.3999085,26101.0,26100.0,0.4213]
[1693570515092,0.36608457,26101.0,26100.0,0.4213]
[1693570515595,0.4199085,26101.0,26100.0,0.4213]
[1693570515793,0.3999085,26101.0,26100.0,0.4213]
[1693570516293,0.4199085,26101.0,26100.0,0.4213]
[1693570516492,0.36608457,26101.0,26100.0,0.4213]
[1693570516686,0.37690536,26101.0,26100.0,0.4213]
[1693570517194,0.43072929,26101.0,26100.0,0.4213]
[1693570517393,0.45072929,26101.0,26100.0,0.4213]
[1693570517993,0.43072929,26101.0,26100.0,0.4213]
[1693570518197,0.45072929,26101.0,26100.0,0.4213]
[1693570518693,0.43072929,26101.0,26100.0,0.4213]
[1693570518895,0.86602929,26101.0,26100.0,0.4213]
[1693570519094,0.86602929,26101.0,26100.0,0.4183]
[1693570519295,0.86602929,26101.0,26100.0,0.4213]
[1693570519691,0.59807601,26101.0,26100.0,0.4213]
[1693570521298,0.5425907,26101.0,26100.0,0.4213]
[1693570522298,0.59807629,26101.0,26100.0,0.4213]
[1693570522499,0.5425907,26101.0,26100.0,0.4213]
[1693570522703,0.77226943,26101.0,26100.0,0.4213]
[1693570524405,0.67579671,26101.0,26100.0,0.47784838]
[1693570524999,0.67579671,26101.0,26100.0,0.53253745]
[1693570525603,0.26049671,26101.0,26100.0,0.53253745]
[1693570527790,0.26049671,26101.0,26100.0,0.55253745]
[1693570528603,0.26049671,26101.0,26100.0,0.53253745]
[1693570529604,0.26049671,26101.0,26100.0,0.55253745]
[1693570530006,0.26049671,26101.0,26100.0,0.53253745]
[1693570530195,0.26049671,26101.0,26100.0,0.55253745]
[1693570530804,0.26049671,26101.0,26100.0,0.47784838]
[1693570531104,0.26049671,26101.0,26100.0,0.4213]
[1693570531304,0.26049671,26101.0,26100.0,0.5797]
[1693570531505,0.28314269,26101.0,26100.0,0.63738907]
[1693570532207,0.26049671,26101.0,26100.0,0.63738907]
[1693570532706,0.26049671,26101.0,26100.0,0.69393745]
[1693570533107,0.03082079,26101.0,26100.0,0.71393745]
[1693570533408,0.22967592,26102.0,26100.0,0.71393745]
[1693570533605,0.22967592,26102.0,26101.0,0.52653745]
[1693570535008,0.28349985,26102.0,26101.0,0.4153]
[1693570535306,0.07382393,26102.0,26101.0,0.4183]
[1693570535499,0.09646991,26102.0,26101.0,0.4213]
[1693570536203,0.07646991,26102.0,26101.0,0.4213]
[1693570536406,0.09646991,26102.0,26101.0,0.4213]
[1693570536908,0.51176991,26102.0,26101.0,0.4183]
[1693570537109,0.51176991,26102.0,26101.0,0.4213]
[1693570537409,0.56725017,26102.0,26101.0,0.4213]
[1693570537606,0.83520345,26102.0,26101.0,0.4213]
[1693570538208,0.83520345,26102.0,26101.0,0.006]
[1693570539908,0.83520345,26102.0,26101.0,0.003]
[1693570540106,0.83520345,26102.0,26101.0,0.006]
[1693570541712,0.56725017,26102.0,26101.0,0.006]
[1693570541912,0.83518361,26102.0,26101.0,0.006]
[1693570542214,0.56725017,26102.0,26101.0,0.006]
[1693570542915,0.83520157,26102.0,26101.0,0.006]
[1693570543112,0.56725017,26102.0,26101.0,0.006]
[1693570543313,0.87384766,26102.0,26101.0,0.006]
[1693570546214,0.96317758,26102.0,26101.0,0.006]
[1693570550413,0.87384766,26102.0,26101.0,0.006]
[1693570550610,0.85384766,26102.0,26101.0,0.006]
[1693570550807,0.96322531,26102.0,26101.0,0.006]
[1693570551210,0.94322531,26102.0,26101.0,0.006]
[1693570551911,0.96322531,26102.0,26101.0,0.006]
[1693570553619,0.94322531,26102.0,26101.0,0.006]
[1693570556618,1.00021187,26102.0,26101.0,0.006]
[1693570557319,0.92374196,26102.0,26101.0,0.006]
[1693570558025,1.00021187,26102.0,26101.0,0.006]
[1693570559019,0.92374196,26102.0,26101.0,0.006]
[1693570559218,0.92374196,26102.0,26101.0,0.4213]
[1693570559219,0.83436431,26102.0,26101.0,0.4213]
[1693570559418,0.87866052,26102.0,26101.0,0.4213]
[1693570559619,0.85384766,26102.0,26101.0,0.4213]
[1693570559925,0.80002373,26102.0,26101.0,0.4213]
[1693570560125,0.87870998,26102.0,26101.0,0.4213]
[1693570560321,0.77737775,26102.0,26101.0,0.4213]
[1693570560723,0.83120168,26102.0,26101.0,0.47784838]
[1693570561026,0.47078026,26102.0,26101.0,0.47784838]
[1693570561723,0.47078026,26102.0,26101.0,0.53253745]
[1693570563129,0.52460419,26102.0,26101.0,0.4213]
[1693570563523,0.54725017,26102.0,26101.0,0.4213]
[1693570563725,0.85384766,26102.0,26101.0,0.4213]
[1693570563926,0.80002373,26102.0,26101.0,0.4213]
[1693570564226,0.47078026,26102.0,26101.0,0.47784838]
[1693570565432,0.47078026,26102.0,26101.0,0.4213]
[1693570565737,0.77737775,26102.0,26101.0,0.4213]
[1693570565931,0.83120168,26102.0,26101.0,0.4213]
[1693570566230,0.77737775,26102.0,26101.0,0.4213]
[1693570566430,0.85384766,26102.0,26101.0,0.4213]
[1693570566926,0.96396537,26102.0,26101.0,0.4213]
[1693570567124,0.96394937,26102.0,26101.0,0.4213]
[1693570567931,0.85384766,26102.0,26101.0,0.4213]
[1693570568234,0.91276291,26102.0,26101.0,0.4213]
[1693570569331,0.49342624,26102.0,26101.0,0.4213]
[1693570569530,0.76165584,26102.0,26101.0,0.4213]
[1693570569728,0.81547977,26102.0,26101.0,0.4213]
[1693570572533,0.76165584,26102.0,26101.0,0.47784838]
[1693570572834,0.79283379,26102.0,26101.0,0.47784838]
[1693570573230,0.73900986,26102.0,26101.0,0.5344253]
[1693570575740,0.47078026,26102.0,26101.0,0.5344253]
[1693570576937,0.05548026,26102.0,26101.0,0.5344253]
[1693570577144,0.10930419,26102.0,26101.0,0.4153]
[1693570577439,0.05548026,26102.0,26101.0,0.47334307]
[1693570578145,0.08527879,26102.0,26101.0,0.47334307]
[1693570579341,0.51565971,26102.0,26101.0,0.47334307]
[1693570579639,0.51565971,26102.0,26101.0,0.49334307]
[1693570581033,0.51565971,26102.0,26101.0,0.49634307]
[1693570581034,0.51865971,26102.0,26101.0,0.49634307]
[1693570581842,0.52165971,26102.0,26101.0,0.49934307]
[1693570582346,0.35947551,26102.0,26101.0,0.49934307]
[1693570582644,0.09127879,26102.0,26101.0,0.49934307]
[1693570583138,0.35947551,26102.0,26101.0,0.49934307]
[1693570583938,0.41602389,26102.0,26101.0,0.4213]
[1693570584135,0.41602389,26102.0,26101.0,0.4413]
[1693570584136,0.14782717,26102.0,26101.0,0.4413]
[1693570584341,0.35940658,26102.0,26101.0,0.4413]
[1693570584538,0.82825496,26102.0,26101.0,0.4183]
[1693570584740,0.83125496,26102.0,26101.0,0.4213]
[1693570584941,0.56312717,26102.0,26101.0,0.46544067]
[1693570585142,0.50657879,26102.0,26101.0,0.49934307]
[1693570585642,0.50657879,26102.0,26101.0,0.47934307]
[1693570586144,0.50357879,26102.0,26101.0,0.47634307]
[1693570586347,0.50657879,26102.0,26101.0,0.47934307]
[1693570586949,0.09127879,26102.0,26101.0,0.47934307]
[1693570588150,0.27407774,26102.0,26101.0,0.47934307]
[1693570588345,0.35935653,26102.0,26101.0,0.47934307]
[1693570588742,0.35635653,26102.0,26101.0,0.47634307]
[1693570588945,0.27407774,26102.0,26101.0,0.47934307]
[1693570589744,0.35935653,26102.0,26101.0,0.47934307]
[1693570589939,0.27407774,26102.0,26101.0,0.47934307]
[1693570590450,0.35935653,26102.0,26101.0,0.47934307]
[1693570591742,0.41590491,26102.0,26101.0,0.4213]
[1693570592949,0.41590491,26102.0,26101.0,0.44544067]
[1693570593353,0.41590491,26102.0,26101.0,0.4213]
[1693570593548,0.41590491,26102.0,26101.0,0.44544067]
[1693570593951,0.41590491,26102.0,26101.0,0.4213]
[1693570594248,0.41590491,26102.0,26101.0,0.44544067]
[1693570594452,0.35935653,26102.0,26101.0,0.44544067]
[1693570594652,0.35935653,26102.0,26101.0,0.4213]
[1693570595253,0.47059398,26102.0,26101.0,0.4213]
[1693570595553,0.41590491,26102.0,26101.0,0.4213]
[1693570595944,0.47059398,26102.0,26101.0,0.4213]
[1693570596548,0.41590491,26102.0,26101.0,0.4213]
[1693570597064,0.83120491,26102.0,26101.0,0.4213]
[1693570597267,0.83120491,26102.0,26101.0,0.44544067]
[1693570597567,0.83120491,26102.0,26101.0,0.4213]
[1693570597867,0.83120491,26102.0,26101.0,0.44544067]
[1693570598069,0.77465653,26102.0,26101.0,0.47934307]
[1693570600264,0.83120491,26102.0,26101.0,0.4213]
[1693570602968,0.35935653,26102.0,26101.0,0.4413]
[1693570603173,0.35935653,26102.0,26101.0,0.4213]
[1693570603369,0.35935653,26102.0,26101.0,0.4413]
[1693570603675,0.27407774,26102.0,26101.0,0.49934307]
[1693570603865,0.35935653,26102.0,26101.0,0.47934307]
[1693570604066,0.35935653,26102.0,26101.0,0.4552024]
[1693570604874,0.35935653,26102.0,26101.0,0.47934307]
[1693570606972,0.35935653,26102.0,26101.0,0.3835024]
[1693570607171,0.41590491,26102.0,26101.0,0.32545933]
[1693570607382,0.35935653,26102.0,26101.0,0.3835024]
[1693570607782,0.35935653,26102.0,26101.0,0.35936173]
[1693570607980,0.35935653,26102.0,26101.0,0.3835024]
[1693570609365,0.27407774,26102.0,26101.0,0.3835024]
[1693570610280,0.27707774,26102.0,26101.0,0.3865024]
[1693570610478,0.36235653,26102.0,26101.0,0.3865024]
[1693570611077,0.27707774,26102.0,26101.0,0.3865024]
[1693570611282,0.36235653,26102.0,26101.0,0.3865024]
[1693570611481,0.27707774,26102.0,26101.0,0.3865024]
[1693570611778,0.27707774,26102.0,26101.0,0.36236173]
[1693570611980,0.36535653,26102.0,26101.0,0.3895024]
[1693570612182,0.28007774,26102.0,26101.0,0.3895024]
[1693570612677,0.36535653,26102.0,26101.0,0.3895024]
[1693570613076,0.28007774,26102.0,26101.0,0.3895024]
[1693570614181,0.36535653,26102.0,26101.0,0.3895024]
[1693570614575,0.28007774,26102.0,26101.0,0.3895024]
[1693570614981,0.36535653,26102.0,26101.0,0.3895024]
[1693570615280,0.28007774,26102.0,26101.0,0.3895024]
[1693570615486,0.012,26102.0,26101.0,0.3895024]
[1693570615696,0.28000812,26102.0,26101.0,0.3895024]
[1693570616183,0.4081481,26102.0,26101.0,0.3895024]
[1693570616672,0.14013998,26102.0,26101.0,0.3895024]
[1693570620086,0.40822752,26102.0,26101.0,0.3895024]
[1693570620786,0.14013998,26102.0,26101.0,0.3895024]
[1693570621281,0.12631983,26102.0,26101.0,0.3895024]
[1693570621686,0.26810468,26102.0,26101.0,0.3895024]
[1693570624388,0.26810468,26102.0,26101.0,0.3865024]
[1693570624590,0.26810468,26102.0,26101.0,0.3895024]
[1693570625189,0.26810468,26102.0,26101.0,0.3865024]
[1693570625388,0.26810468,26102.0,26101.0,0.3895024]
[1693570627285,0.02,26102.0,26101.0,0.4213]
[1693570627883,0.13123745,26102.0,26101.0,0.4213]
[1693570628890,0.02,26102.0,26101.0,0.4213]
[1693570629092,0.28822736,26102.0,26101.0,0.4213]
[1693570629287,0.4318068,26102.0,26101.0,0.4213]
[1693570629589,0.4318068,26102.0,26101.0,0.4552024]
[1693570629787,0.4118068,26102.0,26101.0,0.4552024]
[1693570629988,0.4318068,26102.0,26101.0,0.4552024]
[1693570630694,0.4118068,26102.0,26101.0,0.4213]
[1693570630892,0.4318068,26102.0,26101.0,0.4213]
[1693570631093,0.70447453,26102.0,26101.0,0.4213]
[1693570631289,0.70633384,26102.0,26101.0,0.4213]
[1693570631790,0.76102291,26102.0,26101.0,0.4213]
[1693570632097,0.70633384,26102.0,26101.0,0.4213]
[1693570632393,0.76102291,26102.0,26101.0,0.4213]
[1693570633995,0.74102291,26102.0,26101.0,0.4213]
[1693570634194,0.76102291,26102.0,26101.0,0.4213]
[1693570635082,0.74102291,26102.0,26101.0,0.4213]
[1693570637093,0.74102291,26102.0,26101.0,0.32545777]
[1693570638588,0.68447453,26102.0,26101.0,0.32545777]
[1693570639295,0.74102291,26102.0,26101.0,0.32545777]
[1693570640097,0.62978546,26102.0,26101.0,0.32545777]
[1693570640596,0.32349047,26102.0,26101.0,0.32545777]
[1693570640787,0.66807233,26102.0,26101.0,0.32545777]
[1693570641394,0.72462071,26102.0,26101.0,0.32545777]
[1693570641798,0.77930978,26102.0,26101.0,0.32545777]
[1693570642186,0.66807233,26102.0,26101.0,0.32545777]
[1693570642693,0.66807233,26102.0,26101.0,0.35936017]
[1693570642888,0.66807233,26102.0,26101.0,0.38350084]
[1693570643094,0.14357944,26102.0,26101.0,0.38350084]
[1693570646195,0.41185311,26102.0,26101.0,0.38350084]
[1693570646402,0.14357944,26102.0,26101.0,0.38350084]
[1693570647899,0.2682767,26102.0,26101.0,0.38350084]
[1693570649197,0.41185614,26102.0,26101.0,0.38350084]
[1693570649797,0.41185614,26102.0,26101.0,0.38050084]
[1693570650101,0.2682767,26102.0,26101.0,0.38350084]
[1693570650306,0.41185614,26102.0,26101.0,0.38350084]
[1693570650498,0.2682767,26102.0,26101.0,0.38050084]
[1693570650704,0.2682767,26102.0,26101.0,0.38350084]
[1693570650900,0.2682767,26102.0,26101.0,0.32545777]
[1693570650901,0.41185614,26102.0,26101.0,0.32545777]
[1693570651106,0.14357944,26102.0,26101.0,0.32545777]
[1693570651307,0.65242907,26103.0,26101.0,0.32545777]
[1693570651510,0.25481689,26102.0,26101.0,0.006]
[1693570651810,0.25481689,26102.0,26101.0,0.4213]
[1693570652199,0.26827476,26102.0,26101.0,0.47934307]
[1693570652400,0.20012782,26102.0,26101.0,0.4522024]
[1693570652704,0.20012782,26102.0,26101.0,0.4213]
[1693570652895,0.05654838,26102.0,26101.0,0.4213]
[1693570653100,0.40231892,26102.0,26101.0,0.4213]
[1693570655513,0.34577054,26102.0,26101.0,0.4213]
[1693570655703,0.14357944,26102.0,26101.0,0.4552024]
[1693570655898,0.80158985,26103.0,26101.0,0.4552024]
[1693570656104,0.34577054,26102.0,26101.0,0.0399024]
[1693570656398,0.34577054,26102.0,26101.0,0.4552024]
[1693570656898,0.40045961,26102.0,26101.0,0.4522024]
[1693570657106,0.34577054,26102.0,26101.0,0.4213]
[1693570657301,0.14357944,26102.0,26101.0,0.4213]
[1693570657609,0.2021911,26102.0,26101.0,0.47934307]
[1693570657911,0.34577054,26102.0,26101.0,0.47934307]
[1693570658115,0.30659469,26102.0,26101.0,0.4552024]
[1693570658406,0.50878579,26102.0,26101.0,0.4522024]
[1693570658609,0.65236523,26102.0,26101.0,0.4552024]
[1693570658810,0.65236523,26102.0,26101.0,0.47934307]
[1693570659009,0.65236523,26102.0,26101.0,0.4552024]
[1693570659408,0.76360268,26102.0,26101.0,0.4213]
[1693570659707,0.15336048,26100.0,26099.0,0.00057468]
[1693570659901,1.20870827,26100.0,26099.0,0.00057468]
[1693570660105,0.91698771,26100.0,26099.0,0.41587468]
[1693570660309,0.60355916,26100.0,26099.0,0.44977708]
[1693570660712,0.60355916,26100.0,26099.0,0.44001535]
[1693570660914,0.60355916,26100.0,26099.0,0.41587468]
[1693570661216,0.71479661,26100.0,26099.0,0.41587468]
[1693570661705,0.66010754,26100.0,26099.0,0.41587468]
[1693570662216,0.66310754,26100.0,26099.0,0.44301535]
[1693570662405,0.3564883,26100.0,26099.0,0.44301535]
[1693570662605,0.3594883,26100.0,26099.0,0.57757468]
[1693570662802,0.41417737,26100.0,26099.0,0.57757468]
[1693570663208,0.68241842,26100.0,26099.0,0.57757468]
[1693570663607,0.62772935,26100.0,26099.0,0.57757468]
[1693570664107,0.68241842,26100.0,26099.0,0.57757468]
[1693570664305,0.62772935,26100.0,26099.0,0.57757468]
[1693570664715,0.68241842,26100.0,26099.0,0.57757468]
[1693570665618,0.62772935,26100.0,26099.0,0.57757468]
[1693570666317,0.68241842,26100.0,26099.0,0.57757468]
[1693570667011,0.68241842,26100.0,26099.0,0.48331823]
[1693570668113,0.62772935,26100.0,26099.0,0.48331823]
[1693570668319,0.47436887,26100.0,26099.0,0.48331823]
[1693570668712,0.52905794,26100.0,26099.0,0.48331823]
[1693570669121,0.47436887,26100.0,26099.0,0.48331823]
[1693570669715,0.44803039,26100.0,26099.0,0.51722063]
[1693570670614,0.50271946,26100.0,26099.0,0.48331823]
[1693570671014,0.55926784,26100.0,26099.0,0.48331823]
[1693570671421,0.44803039,26100.0,26099.0,0.48331823]
[1693570671918,0.44803039,26100.0,26099.0,0.51722063]
[1693570672720,0.50271946,26100.0,26099.0,0.51722063]
[1693570672915,0.44803039,26100.0,26099.0,0.51722063]
[1693570674723,0.86333039,26100.0,26099.0,0.6109024]
[1693570674920,0.86333039,26100.0,26099.0,0.63504307]
[1693570675221,0.86333039,26100.0,26099.0,0.6109024]
[1693570675925,0.86333039,26100.0,26099.0,0.577]
[1693570676220,0.91801946,26100.0,26099.0,0.577]
[1693570676422,0.97456784,26100.0,26099.0,0.577]
[1693570677423,0.86333039,26100.0,26099.0,0.577]
[1693570678223,0.91987877,26100.0,26099.0,0.577]
[1693570678528,0.97456784,26100.0,26099.0,0.577]
[1693570678819,0.91987877,26100.0,26099.0,0.577]
[1693570679022,0.86333039,26100.0,26099.0,0.577]
[1693570679326,0.56487944,26100.0,26099.0,0.577]
[1693570679522,0.56487944,26100.0,26099.0,0.65504307]
[1693570679523,0.23586239,26100.0,26099.0,0.65504307]
[1693570680425,0.23586239,26100.0,26099.0,0.63504307]
[1693570680621,0.23586239,26100.0,26099.0,0.65504307]
[1693570681026,0.003,26100.0,26099.0,0.65004307]
[1693570681226,0.006,26100.0,26099.0,0.63304307]
[1693570681629,0.003,26100.0,26099.0,0.63204307]
[1693570681930,0.006,26100.0,26099.0,0.63304307]
[1693570689739,0.006,26100.0,26099.0,0.63204307]
[1693570690548,0.006,26100.0,26099.0,0.63104307]
[1693570691147,0.006,26100.0,26099.0,0.63291199]
[1693570697542,0.0005735,26102.0,26099.0,0.57486892]
[1693570697746,0.0005735,26102.0,26101.0,0.44605709]
[1693570698151,0.0005735,26102.0,26101.0,0.50410016]
[1693570698354,0.22968429,26105.0,26103.0,0.7153]
[1693570698567,0.22965293,26108.0,26106.0,0.3]
[1693570698856,0.45944249,26130.0,26126.0,1.2]
[1693570699054,0.38255821,26127.0,26126.0,0.3454359]
[1693570699353,0.57383053,26136.0,26134.0,0.3]
[1693570699560,0.38255821,26140.0,26134.0,0.3]
[1693570699561,0.18325552,26140.0,26139.0,0.75]
[1693570699757,0.31158101,26144.0,26142.0,2.85]
[1693570700057,0.34289264,26153.0,26147.0,1.64061315]
[1693570700058,0.22230634,26150.0,26147.0,1.64061315]
[1693570700251,0.31520459,26154.0,26148.0,0.02414067]
[1693570700252,0.01041113,26154.0,26148.0,0.02414067]
[1693570700449,0.01041113,26154.0,26147.0,0.74061315]
[1693570700450,0.4153,26149.0,26147.0,0.05741315]
[1693570700648,0.00383,26148.0,26147.0,0.52768954]
[1693570700843,0.73913,26148.0,26147.0,0.05741315]
[1693570701042,0.00383,26147.0,26144.0,0.13779421]
[1693570701250,0.41913,26145.0,26144.0,0.13779421]
[1693570701458,0.41913,26145.0,26138.0,0.18999191]
[1693570701459,0.00383,26144.0,26138.0,0.18999191]
[1693570701658,0.00012,26151.0,26144.0,0.01149]
[1693570701846,0.3,26150.0,26145.0,0.15031154]
[1693570702158,0.3,26150.0,26145.0,0.00382]
[1693570702159,0.7153,26146.0,26145.0,0.00382]
[1693570702348,1.01949678,26146.0,26144.0,0.04049]
[1693570702549,0.32,26146.0,26144.0,0.04049]
[1693570702754,0.69949678,26145.0,26144.0,0.04049]
[1693570703052,0.69949678,26145.0,26138.0,0.25319169]
[1693570703053,0.3,26139.0,26138.0,0.25319169]
[1693570703251,1.01949678,26139.0,26138.0,0.20369169]
[1693570703648,0.32,26139.0,26138.0,0.87106808]
[1693570703866,0.9324,26139.0,26129.0,0.6124]
[1693570704056,0.9124,26130.0,26126.0,0.6124]
[1693570704250,0.9124,26130.0,26127.0,0.05497639]
[1693570704453,0.9124,26130.0,26119.0,0.19175887]
[1693570704454,0.6124,26127.0,26123.0,0.6124]
[1693570704653,0.6324,26127.0,26124.0,0.05497639]
[1693570704854,0.02,26127.0,26124.0,0.6124]
[1693570705045,0.0305484,26127.0,26126.0,0.6124]
[1693570705251,0.9124,26130.0,26126.0,0.66737639]
[1693570705456,0.25429163,26125.0,26119.0,0.03046132]
[1693570705756,0.75752307,26122.0,26117.0,0.6124]
[1693570705960,0.77752307,26122.0,26117.0,0.6124]
[1693570706150,0.14512307,26122.0,26121.0,0.6124]
[1693570706351,0.14512307,26122.0,26121.0,0.72206546]
[1693570706554,0.3,26129.0,26121.0,0.74206546]
[1693570706555,0.14512307,26124.0,26121.0,0.74206546]
[1693570706749,0.00383,26123.0,26122.0,0.10966546]
[1693570706949,0.00383,26123.0,26122.0,0.6124]
[1693570707450,0.00383,26123.0,26122.0,0.66737639]
[1693570707646,0.00383,26126.0,26122.0,0.82225332]
[1693570707851,0.00383,26127.0,26125.0,0.6124]
[1693570708046,0.00383,26127.0,26126.0,0.6124]
[1693570708255,0.00383,26127.0,26125.0,0.6124]
[1693570708256,0.00383,26126.0,26125.0,0.6124]
[1693570708747,0.02,26126.0,26125.0,0.6124]
[1693570708952,0.00383,26126.0,26125.0,0.66737639]
[1693570709155,0.08037838,26126.0,26125.0,0.6124]
[1693570709554,0.11092678,26126.0,26125.0,0.6124]
[1693570709858,0.05083,26126.0,26125.0,0.6154]
[1693570710260,0.047,26126.0,26125.0,0.67037639]
[1693570710456,0.05083,26126.0,26125.0,0.67037639]
[1693570711047,0.051,26126.0,26125.0,0.67337639]
[1693570711251,0.051,26126.0,26125.0,0.72806546]
[1693570711552,0.031,26126.0,26125.0,0.72806546]
[1693570711958,0.03483,26126.0,26125.0,0.72806546]
[1693570712367,0.11137838,26126.0,26125.0,0.006]
[1693570712855,0.11792678,26126.0,26125.0,0.003]
[1693570713052,0.06737838,26126.0,26125.0,0.003]
[1693570713252,0.01083,26126.0,26125.0,0.003]
[1693570713462,0.01983,26126.0,26125.0,0.005]
[1693570713854,0.016,26126.0,26125.0,0.005]
[1693570714056,0.01983,26126.0,26125.0,0.005]